[Event "*** SCC Grand Prix: Titled Tuesday Blitz"]
[Site "Chess.com"]
[Date "2020.10.13"]
[Round "1"]
[White "Kapibara_Warri0r"]
[Black "draksbg"]
[Result "0-1"]
[WhiteElo "2093"]
[BlackElo "2524"]
[TimeControl "180+1"]
[EndTime "10:05:49 PDT"]
[Termination "draksbg won by checkmate"]

1. e4 {[%clk 0:03:00.3]} 1... c5 {[%clk 0:02:58]} 2. Nf3 {[%clk 0:02:59.2]} 2...
Nc6 {[%clk 0:02:56.9]} 3. d4 {[%clk 0:02:59.2]} 3... cxd4 {[%clk 0:02:56.2]} 4.
Nxd4 {[%clk 0:03:00.1]} 4... Qc7 {[%clk 0:02:56.5]} 5. c4 {[%clk 0:02:55.9]}
5... Nf6 {[%clk 0:02:55.1]} 6. Nc3 {[%clk 0:02:55.6]} 6... e6 {[%clk 0:02:54.3]}
7. Be3 {[%clk 0:02:50.9]} 7... Bb4 {[%clk 0:02:53.3]} 8. Bd3 {[%clk 0:02:49.9]}
8... O-O {[%clk 0:02:51.2]} 9. O-O {[%clk 0:02:49.2]} 9... Nxd4 {[%clk
0:02:46.5]} 10. Bxd4 {[%clk 0:02:48.6]} 10... Bc5 {[%clk 0:02:43.3]} 11. Bxf6
{[%clk 0:02:35.5]} 11... gxf6 {[%clk 0:02:43]} 12. Qg4+ {[%clk 0:02:21.2]} 12...
Kh8 {[%clk 0:02:38.9]} 13. e5 {[%clk 0:02:05.9]} 13... f5 {[%clk 0:02:38.1]} 14.
Bxf5 {[%clk 0:01:49.1]} 14... exf5 {[%clk 0:02:33]} 15. Qxf5 {[%clk 0:01:50]}
15... Be7 {[%clk 0:02:31.8]} 16. Nd5 {[%clk 0:01:44.8]} 16... Qd8 {[%clk
0:02:31.2]} 17. Rad1 {[%clk 0:01:35.5]} 17... d6 {[%clk 0:02:28.2]} 18. Qh5
{[%clk 0:01:34.9]} 18... Be6 {[%clk 0:02:23.6]} 19. Nxe7 {[%clk 0:01:10]} 19...
Qxe7 {[%clk 0:02:24.5]} 20. exd6 {[%clk 0:01:10.1]} 20... Qf6 {[%clk 0:02:24.5]}
21. b3 {[%clk 0:01:08.1]} 21... Rg8 {[%clk 0:02:23.2]} 22. h3 {[%clk 0:00:41.2]}
22... Rad8 {[%clk 0:02:22]} 23. Kh1 {[%clk 0:00:38.5]} 23... Rg5 {[%clk
0:02:19.4]} 24. Qe2 {[%clk 0:00:37.7]} 24... Rdg8 {[%clk 0:02:15.6]} 25. d7
{[%clk 0:00:32.4]} 25... Bxd7 {[%clk 0:02:08.7]} 26. Rxd7 {[%clk 0:00:30.2]}
26... Rxg2 {[%clk 0:02:08.9]} 27. Re7 {[%clk 0:00:20.5]} 27... R2g5 {[%clk
0:01:52.4]} 28. f4 {[%clk 0:00:19.8]} 28... Rf5 {[%clk 0:01:44.8]} 29. Re5
{[%clk 0:00:18.7]} 29... Rxf4 {[%clk 0:01:40.9]} 30. Rxf4 {[%clk 0:00:15.3]}
30... Qxf4 {[%clk 0:01:41.8]} 31. Re4 {[%clk 0:00:13.8]} 31... Qf5 {[%clk
0:01:37.3]} 32. Qb2+ {[%clk 0:00:13.6]} 32... f6 {[%clk 0:01:37.3]} 33. Re3
{[%clk 0:00:11.2]} 33... Qf1+ {[%clk 0:01:35.4]} 34. Kh2 {[%clk 0:00:11.3]}
34... Qg1# {[%clk 0:01:35.5]} 0-1

[Event "*** SCC Grand Prix: Titled Tuesday Blitz"]
[Site "Chess.com"]
[Date "2020.10.13"]
[Round "1"]
[White "Omk124"]
[Black "Zhigalko_Sergei"]
[Result "0-1"]
[WhiteElo "2475"]
[BlackElo "2925"]
[TimeControl "180+1"]
[EndTime "10:05:53 PDT"]
[Termination "Zhigalko_Sergei won by resignation"]

1. e4 {[%clk 0:03:00.9]} 1... c5 {[%clk 0:02:57.9]} 2. Nf3 {[%clk 0:03:00.8]}
2... Nc6 {[%clk 0:02:57.5]} 3. d4 {[%clk 0:03:00.9]} 3... cxd4 {[%clk
0:02:57.7]} 4. Nxd4 {[%clk 0:03:01.8]} 4... Nf6 {[%clk 0:02:57.7]} 5. Nc3 {[%clk
0:03:02]} 5... e5 {[%clk 0:02:58]} 6. Ndb5 {[%clk 0:03:01.7]} 6... d6 {[%clk
0:02:58.5]} 7. a4 {[%clk 0:03:02]} 7... a6 {[%clk 0:02:58.3]} 8. Na3 {[%clk
0:03:02.2]} 8... Bg4 {[%clk 0:02:58.9]} 9. f3 {[%clk 0:03:02.1]} 9... Be6 {[%clk
0:02:59]} 10. Bc4 {[%clk 0:03:01.6]} 10... Rc8 {[%clk 0:02:57.5]} 11. Be3 {[%clk
0:03:01.1]} 11... Nb4 {[%clk 0:02:57]} 12. Nd5 {[%clk 0:02:50.6]} 12... Nbxd5
{[%clk 0:02:38]} 13. exd5 {[%clk 0:02:48.2]} 13... Nxd5 {[%clk 0:02:20.3]} 14.
Bxd5 {[%clk 0:02:46.3]} 14... Qa5+ {[%clk 0:02:20.2]} 15. c3 {[%clk 0:02:45.7]}
15... Qxd5 {[%clk 0:02:19.8]} 16. Qxd5 {[%clk 0:02:45.4]} 16... Bxd5 {[%clk
0:02:20.2]} 17. Kf2 {[%clk 0:02:44.5]} 17... Be7 {[%clk 0:02:19.4]} 18. a5
{[%clk 0:02:44]} 18... f5 {[%clk 0:02:15.7]} 19. Rhd1 {[%clk 0:02:42.9]} 19...
Bb3 {[%clk 0:02:15.3]} 20. Rd3 {[%clk 0:02:40.4]} 20... Kf7 {[%clk 0:02:10.7]}
21. g3 {[%clk 0:02:36.2]} 21... g5 {[%clk 0:02:06.4]} 22. f4 {[%clk 0:02:13]}
22... gxf4 {[%clk 0:02:04.3]} 23. gxf4 {[%clk 0:02:13.9]} 23... Ke6 {[%clk
0:01:55.9]} 24. Rg1 {[%clk 0:02:10.3]} 24... Rhg8 {[%clk 0:01:53.1]} 25. Rxg8
{[%clk 0:02:02.3]} 25... Rxg8 {[%clk 0:01:52.9]} 26. c4 {[%clk 0:02:02.5]} 26...
Ba4 {[%clk 0:01:48.4]} 27. b4 {[%clk 0:02:02.3]} 27... Bc6 {[%clk 0:01:47]} 28.
Rd2 {[%clk 0:01:54.6]} 28... Be4 {[%clk 0:01:36.8]} 29. Kf1 {[%clk 0:01:44.6]}
29... Rg4 {[%clk 0:01:29.6]} 30. Rf2 {[%clk 0:01:36.3]} 30... Bh4 {[%clk
0:01:28.4]} 31. Rd2 {[%clk 0:01:31.5]} 31... exf4 {[%clk 0:01:00]} 32. Bf2
{[%clk 0:01:28.9]} 32... Rg2 {[%clk 0:00:47.9]} 33. b5 {[%clk 0:01:23.4]} 33...
Rxh2 {[%clk 0:00:43]} 34. bxa6 {[%clk 0:01:06.4]} 34... bxa6 {[%clk 0:00:40.6]}
0-1

[Event "*** SCC Grand Prix: Titled Tuesday Blitz"]
[Site "Chess.com"]
[Date "2020.10.13"]
[Round "1"]
[White "NMZanette"]
[Black "Chesswizard_2007"]
[Result "0-1"]
[WhiteElo "2228"]
[BlackElo "2568"]
[TimeControl "180+1"]
[EndTime "10:05:55 PDT"]
[Termination "Chesswizard_2007 won by resignation"]

1. e4 {[%clk 0:02:58.5]} 1... a5 {[%clk 0:02:57.6]} 2. d4 {[%clk 0:02:57.6]}
2... b6 {[%clk 0:02:56.5]} 3. a4 {[%clk 0:02:56.4]} 3... Ba6 {[%clk 0:02:56.4]}
4. c4 {[%clk 0:02:55]} 4... g6 {[%clk 0:02:51.2]} 5. Nc3 {[%clk 0:02:54.8]} 5...
h5 {[%clk 0:02:51.1]} 6. Nf3 {[%clk 0:02:51.2]} 6... Nc6 {[%clk 0:02:50.5]} 7.
Be3 {[%clk 0:02:49.6]} 7... Bh6 {[%clk 0:02:49]} 8. Bxh6 {[%clk 0:02:39.2]} 8...
Nxh6 {[%clk 0:02:49.9]} 9. Be2 {[%clk 0:02:35]} 9... d6 {[%clk 0:02:48.1]} 10.
O-O {[%clk 0:02:34.2]} 10... e5 {[%clk 0:02:47.8]} 11. Nd5 {[%clk 0:02:22.3]}
11... O-O {[%clk 0:02:40.6]} 12. Qd2 {[%clk 0:02:19]} 12... Kg7 {[%clk
0:02:40.1]} 13. b4 {[%clk 0:02:18.1]} 13... axb4 {[%clk 0:02:38.8]} 14. Nxb4
{[%clk 0:02:16]} 14... Nxb4 {[%clk 0:02:39.7]} 15. Qxb4 {[%clk 0:02:15.1]} 15...
exd4 {[%clk 0:02:39.7]} 16. Qb2 {[%clk 0:02:12.1]} 16... c5 {[%clk 0:02:39.3]}
17. h3 {[%clk 0:01:38.7]} 17... f6 {[%clk 0:02:29.3]} 18. Rab1 {[%clk
0:01:32.8]} 18... Rb8 {[%clk 0:02:28.6]} 19. Rfe1 {[%clk 0:01:29.1]} 19... Nf7
{[%clk 0:02:27.2]} 20. Nd2 {[%clk 0:01:25.4]} 20... Qc7 {[%clk 0:02:26.5]} 21.
f4 {[%clk 0:01:23.7]} 21... Rb7 {[%clk 0:02:21.4]} 22. Nf3 {[%clk 0:01:11.6]}
22... Rbb8 {[%clk 0:02:20.8]} 23. Bd3 {[%clk 0:01:11.7]} 23... Rfe8 {[%clk
0:02:19.8]} 24. Re2 {[%clk 0:01:11.6]} 24... g5 {[%clk 0:02:18.7]} 25. fxg5
{[%clk 0:01:10.2]} 25... fxg5 {[%clk 0:02:19.6]} 26. Qd2 {[%clk 0:01:05.6]}
26... Qd8 {[%clk 0:02:16.8]} 27. Rf1 {[%clk 0:01:04.7]} 27... Qe7 {[%clk
0:02:10.9]} 28. Ref2 {[%clk 0:01:03.4]} 28... Rf8 {[%clk 0:02:10.1]} 29. h4
{[%clk 0:00:44.2]} 29... gxh4 {[%clk 0:01:59.6]} 30. Qf4 {[%clk 0:00:22.8]}
30... Ne5 {[%clk 0:01:59]} 31. Qh2 {[%clk 0:00:16.3]} 31... Ng4 {[%clk
0:01:57.2]} 32. Qh3 {[%clk 0:00:14.2]} 32... Nxf2 {[%clk 0:01:56.4]} 33. Rxf2
{[%clk 0:00:14.8]} 33... Rf4 {[%clk 0:01:55.3]} 34. e5 {[%clk 0:00:12.9]} 34...
dxe5 {[%clk 0:01:47.6]} 35. Re2 {[%clk 0:00:13]} 35... e4 {[%clk 0:01:44.9]} 36.
Nd2 {[%clk 0:00:13]} 36... e3 {[%clk 0:01:42.6]} 37. Nf3 {[%clk 0:00:11.6]}
37... Rbf8 {[%clk 0:01:42.6]} 38. Qh2 {[%clk 0:00:08.3]} 38... Bb7 {[%clk
0:01:40.5]} 0-1

[Event "*** SCC Grand Prix: Titled Tuesday Blitz"]
[Site "Chess.com"]
[Date "2020.10.13"]
[Round "1"]
[White "norwaytoadog"]
[Black "ManuDavid2910"]
[Result "0-1"]
[WhiteElo "2316"]
[BlackElo "2647"]
[TimeControl "180+1"]
[EndTime "10:06:02 PDT"]
[Termination "ManuDavid2910 won on time"]

1. e4 {[%clk 0:02:59.3]} 1... c5 {[%clk 0:02:59.3]} 2. Nf3 {[%clk 0:02:57.9]}
2... Nc6 {[%clk 0:03:00]} 3. Bb5 {[%clk 0:02:57.7]} 3... e6 {[%clk 0:03:00.2]}
4. Bxc6 {[%clk 0:02:57.6]} 4... bxc6 {[%clk 0:03:01.1]} 5. d3 {[%clk 0:02:55.1]}
5... d5 {[%clk 0:03:02]} 6. O-O {[%clk 0:02:51.3]} 6... Ba6 {[%clk 0:03:02.1]}
7. e5 {[%clk 0:02:45.8]} 7... Ne7 {[%clk 0:03:01.2]} 8. b3 {[%clk 0:02:43]} 8...
Ng6 {[%clk 0:02:57.6]} 9. Re1 {[%clk 0:02:39.7]} 9... Be7 {[%clk 0:02:57]} 10.
c4 {[%clk 0:02:38.3]} 10... O-O {[%clk 0:02:57.1]} 11. Nc3 {[%clk 0:02:31]}
11... f6 {[%clk 0:02:56.4]} 12. Bb2 {[%clk 0:02:18.1]} 12... fxe5 {[%clk
0:02:53.7]} 13. Nxe5 {[%clk 0:02:17.7]} 13... Nxe5 {[%clk 0:02:52.5]} 14. Rxe5
{[%clk 0:02:16.8]} 14... Qd6 {[%clk 0:02:52.4]} 15. Qe2 {[%clk 0:02:02.2]} 15...
Bc8 {[%clk 0:02:51.6]} 16. Re1 {[%clk 0:01:43]} 16... Bf6 {[%clk 0:02:50.5]} 17.
Re3 {[%clk 0:01:29.9]} 17... Bxc3 {[%clk 0:02:47.9]} 18. Bxc3 {[%clk 0:00:56.2]}
18... d4 {[%clk 0:02:47.6]} 19. Re5 {[%clk 0:00:49.9]} 19... dxc3 {[%clk
0:02:47.1]} 20. Qc2 {[%clk 0:00:45.7]} 20... Bd7 {[%clk 0:02:31.8]} 21. Qxc3
{[%clk 0:00:45]} 21... Qd4 {[%clk 0:02:32.1]} 22. Qd2 {[%clk 0:00:42.4]} 22...
Rf6 {[%clk 0:02:29.2]} 23. R1e4 {[%clk 0:00:38.9]} 23... Qd6 {[%clk 0:02:26.5]}
24. f4 {[%clk 0:00:36.5]} 24... Raf8 {[%clk 0:02:26.2]} 25. g3 {[%clk
0:00:36.6]} 25... Rf5 {[%clk 0:02:21.3]} 26. Qe3 {[%clk 0:00:29.6]} 26... g5
{[%clk 0:02:17.9]} 27. Rxf5 {[%clk 0:00:24]} 27... exf5 {[%clk 0:02:15]} 28. Re5
{[%clk 0:00:22.9]} 28... gxf4 {[%clk 0:02:12.6]} 29. gxf4 {[%clk 0:00:22.9]}
29... Qd4 {[%clk 0:02:12.6]} 30. Kf2 {[%clk 0:00:19.8]} 30... Re8 {[%clk
0:02:06.2]} 31. Qxd4 {[%clk 0:00:18.5]} 31... cxd4 {[%clk 0:02:05.3]} 32. Ra5
{[%clk 0:00:18.4]} 32... Ra8 {[%clk 0:02:03.8]} 33. c5 {[%clk 0:00:16.4]} 33...
Kf7 {[%clk 0:02:03.7]} 34. Ra6 {[%clk 0:00:15.5]} 34... Ke6 {[%clk 0:02:04]} 35.
b4 {[%clk 0:00:15.9]} 35... Kd5 {[%clk 0:02:04.5]} 36. a3 {[%clk 0:00:15.1]}
36... Bc8 {[%clk 0:02:02.3]} 37. Ra5 {[%clk 0:00:14.3]} 37... a6 {[%clk
0:02:02.6]} 38. a4 {[%clk 0:00:14.3]} 38... Bb7 {[%clk 0:02:01.7]} 39. b5 {[%clk
0:00:10.5]} 39... axb5 {[%clk 0:02:02.5]} 40. Rxa8 {[%clk 0:00:04.5]} 40... Bxa8
{[%clk 0:02:03.4]} 41. a5 {[%clk 0:00:03.6]} 41... Kxc5 {[%clk 0:02:03.6]} 42.
Kg3 {[%clk 0:00:02.9]} 42... b4 {[%clk 0:02:03.9]} 0-1

[Event "*** SCC Grand Prix: Titled Tuesday Blitz"]
[Site "Chess.com"]
[Date "2020.10.13"]
[Round "1"]
[White "FairChess_on_YouTube"]
[Black "Ajedrez_con_German"]
[Result "1-0"]
[WhiteElo "2996"]
[BlackElo "2488"]
[TimeControl "180+1"]
[EndTime "10:06:04 PDT"]
[Termination "FairChess_on_YouTube won by resignation"]

1. d4 {[%clk 0:02:59.3]} 1... e6 {[%clk 0:02:56.3]} 2. Nf3 {[%clk 0:02:57.7]}
2... Nf6 {[%clk 0:02:56.5]} 3. Bg5 {[%clk 0:02:56.8]} 3... c5 {[%clk 0:02:55.6]}
4. Nc3 {[%clk 0:02:54.5]} 4... cxd4 {[%clk 0:02:49]} 5. Qxd4 {[%clk 0:02:54.4]}
5... Nc6 {[%clk 0:02:47.9]} 6. Qh4 {[%clk 0:02:53.9]} 6... Be7 {[%clk
0:02:47.3]} 7. O-O-O {[%clk 0:02:50.3]} 7... Qa5 {[%clk 0:02:37.8]} 8. e4 {[%clk
0:02:44.5]} 8... a6 {[%clk 0:02:18.8]} 9. Kb1 {[%clk 0:02:27.6]} 9... Ne5 {[%clk
0:02:18.6]} 10. Nxe5 {[%clk 0:02:23.7]} 10... Qxe5 {[%clk 0:02:18.2]} 11. f4
{[%clk 0:02:24.1]} 11... Qc5 {[%clk 0:01:58.3]} 12. e5 {[%clk 0:02:20.6]} 12...
Ng8 {[%clk 0:01:46.2]} 13. Ne4 {[%clk 0:02:15.5]} 13... Qb4 {[%clk 0:01:34.9]}
14. Bd3 {[%clk 0:02:00.6]} 14... Bf8 {[%clk 0:01:26.9]} 15. Rhf1 {[%clk
0:01:39.9]} 15... b5 {[%clk 0:01:09.9]} 16. a3 {[%clk 0:01:32.5]} 16... Qa5
{[%clk 0:01:08.1]} 17. f5 {[%clk 0:01:32.2]} 17... Bb7 {[%clk 0:01:02.5]} 18.
fxe6 {[%clk 0:01:16.6]} 18... dxe6 {[%clk 0:01:02.9]} 19. Nd6+ {[%clk
0:01:14.7]} 19... Bxd6 {[%clk 0:01:02.7]} 20. exd6 {[%clk 0:01:15.6]} 20... f6
{[%clk 0:00:52.6]} 21. d7+ {[%clk 0:01:04.8]} 21... Kxd7 {[%clk 0:00:22.7]} 22.
Be4+ {[%clk 0:00:58.4]} 22... Kc7 {[%clk 0:00:21.1]} 23. Qg3+ {[%clk 0:00:48.1]}
23... e5 {[%clk 0:00:19.5]} 24. Bd2 {[%clk 0:00:46]} 1-0

[Event "*** SCC Grand Prix: Titled Tuesday Blitz"]
[Site "Chess.com"]
[Date "2020.10.13"]
[Round "1"]
[White "maciek_92"]
[Black "Slovak_fighter2000"]
[Result "1-0"]
[WhiteElo "2776"]
[BlackElo "2404"]
[TimeControl "180+1"]
[EndTime "10:06:05 PDT"]
[Termination "maciek_92 won by checkmate"]

1. e4 {[%clk 0:03:00.9]} 1... e6 {[%clk 0:02:52.5]} 2. d4 {[%clk 0:03:01]} 2...
d5 {[%clk 0:02:51.9]} 3. exd5 {[%clk 0:03:01.9]} 3... exd5 {[%clk 0:02:51.9]} 4.
Bd3 {[%clk 0:03:02.5]} 4... c5 {[%clk 0:02:49.3]} 5. Nf3 {[%clk 0:02:57]} 5...
Nf6 {[%clk 0:02:47.2]} 6. O-O {[%clk 0:02:52.8]} 6... c4 {[%clk 0:02:47.4]} 7.
Re1+ {[%clk 0:02:52.9]} 7... Be7 {[%clk 0:02:43.7]} 8. Bf1 {[%clk 0:02:51.6]}
8... O-O {[%clk 0:02:44.4]} 9. h3 {[%clk 0:02:51.9]} 9... Nc6 {[%clk 0:02:37.8]}
10. c3 {[%clk 0:02:51.6]} 10... Bf5 {[%clk 0:02:36.7]} 11. Bf4 {[%clk
0:02:42.4]} 11... Re8 {[%clk 0:02:32.3]} 12. Nbd2 {[%clk 0:02:36.4]} 12... Ne4
{[%clk 0:02:27.1]} 13. Nxe4 {[%clk 0:02:33.9]} 13... Bxe4 {[%clk 0:02:28]} 14.
Nd2 {[%clk 0:02:34.2]} 14... Bf5 {[%clk 0:02:25]} 15. Qf3 {[%clk 0:02:31.9]}
15... Qd7 {[%clk 0:02:13]} 16. b3 {[%clk 0:02:30.2]} 16... cxb3 {[%clk
0:02:10.6]} 17. axb3 {[%clk 0:02:30.2]} 17... Bf6 {[%clk 0:02:09.8]} 18. g4
{[%clk 0:02:23.9]} 18... Bg6 {[%clk 0:02:07.4]} 19. Bg2 {[%clk 0:02:18.2]} 19...
Red8 {[%clk 0:02:02.4]} 20. b4 {[%clk 0:02:15]} 20... a6 {[%clk 0:01:45.5]} 21.
Qg3 {[%clk 0:02:14.7]} 21... Be7 {[%clk 0:01:36.6]} 22. h4 {[%clk 0:02:09.3]}
22... h5 {[%clk 0:01:30.8]} 23. gxh5 {[%clk 0:02:09.1]} 23... Bxh5 {[%clk
0:01:31.7]} 24. Bh3 {[%clk 0:02:09.2]} 24... Qe8 {[%clk 0:01:23.2]} 25. Nf3
{[%clk 0:02:06.2]} 25... Bxf3 {[%clk 0:01:18.9]} 26. Qxf3 {[%clk 0:02:07.1]}
26... Qf8 {[%clk 0:01:15.8]} 27. Kh1 {[%clk 0:02:06]} 27... Bd6 {[%clk
0:01:13.9]} 28. Be3 {[%clk 0:02:04.4]} 28... Bc7 {[%clk 0:01:09.7]} 29. Rg1
{[%clk 0:02:03.4]} 29... Qd6 {[%clk 0:01:06.5]} 30. Rg2 {[%clk 0:02:03.9]} 30...
Kf8 {[%clk 0:00:54.3]} 31. Rag1 {[%clk 0:01:59.4]} 31... Ne7 {[%clk 0:00:49.8]}
32. Rg3 {[%clk 0:01:52.9]} 32... a5 {[%clk 0:00:45.1]} 33. b5 {[%clk 0:01:48.4]}
33... a4 {[%clk 0:00:42.9]} 34. R1g2 {[%clk 0:01:48.3]} 34... g6 {[%clk
0:00:36.9]} 35. h5 {[%clk 0:01:40.7]} 35... a3 {[%clk 0:00:32.1]} 36. hxg6
{[%clk 0:01:39.7]} 36... f6 {[%clk 0:00:16.3]} 37. g7+ {[%clk 0:01:35.7]} 37...
Kg8 {[%clk 0:00:07.8]} 38. Qh5 {[%clk 0:01:36.6]} 38... a2 {[%clk 0:00:03.8]}
39. Qh8+ {[%clk 0:01:36.7]} 39... Kf7 {[%clk 0:00:04]} 40. g8=Q+ {[%clk
0:01:37.6]} 40... Rxg8 {[%clk 0:00:03.7]} 41. Rg7+ {[%clk 0:01:38.5]} 41... Rxg7
{[%clk 0:00:01.9]} 42. Rxg7# {[%clk 0:01:39.4]} 1-0

[Event "*** SCC Grand Prix: Titled Tuesday Blitz"]
[Site "Chess.com"]
[Date "2020.10.13"]
[Round "1"]
[White "Oligan22"]
[Black "LiamVrolijk"]
[Result "0-1"]
[WhiteElo "2435"]
[BlackElo "2831"]
[TimeControl "180+1"]
[EndTime "10:06:08 PDT"]
[Termination "LiamVrolijk won by resignation"]

1. e4 {[%clk 0:03:00.9]} 1... e5 {[%clk 0:02:59.8]} 2. Nf3 {[%clk 0:03:00.5]}
2... Nc6 {[%clk 0:03:00.6]} 3. Bb5 {[%clk 0:03:00]} 3... a6 {[%clk 0:03:00.1]}
4. Ba4 {[%clk 0:02:58.3]} 4... g6 {[%clk 0:02:58.8]} 5. c3 {[%clk 0:02:57.4]}
5... Bg7 {[%clk 0:02:58.8]} 6. d4 {[%clk 0:02:55.3]} 6... exd4 {[%clk
0:02:59.7]} 7. cxd4 {[%clk 0:02:56.2]} 7... b5 {[%clk 0:02:59.5]} 8. Bb3 {[%clk
0:02:56.2]} 8... Nge7 {[%clk 0:02:59.1]} 9. d5 {[%clk 0:02:51.2]} 9... Na5
{[%clk 0:02:59.3]} 10. Bd2 {[%clk 0:02:51.6]} 10... c5 {[%clk 0:02:58.8]} 11.
dxc6 {[%clk 0:02:44.4]} 11... dxc6 {[%clk 0:02:49.2]} 12. Bc3 {[%clk 0:02:37.4]}
12... Qxd1+ {[%clk 0:02:44.2]} 13. Bxd1 {[%clk 0:02:38.3]} 13... O-O {[%clk
0:02:42.9]} 14. Bxa5 {[%clk 0:02:36.5]} 14... Bxb2 {[%clk 0:02:43.1]} 15. Bc3
{[%clk 0:02:36.6]} 15... Bxa1 {[%clk 0:02:43.7]} 16. Bxa1 {[%clk 0:02:37.5]}
16... c5 {[%clk 0:02:44.3]} 17. O-O {[%clk 0:02:35]} 17... Bb7 {[%clk
0:02:42.2]} 18. Bf6 {[%clk 0:02:23.3]} 18... Rfe8 {[%clk 0:02:36.6]} 19. Re1
{[%clk 0:02:19.9]} 19... Nc6 {[%clk 0:02:32.5]} 20. Nc3 {[%clk 0:02:16.7]} 20...
Nb4 {[%clk 0:02:30.7]} 21. a3 {[%clk 0:02:06.3]} 21... Nd3 {[%clk 0:02:30.8]}
22. Re3 {[%clk 0:02:06.1]} 22... c4 {[%clk 0:02:30.7]} 23. Bc2 {[%clk
0:02:00.2]} 23... Nc5 {[%clk 0:02:29.7]} 24. e5 {[%clk 0:01:45.6]} 24... Nd7
{[%clk 0:02:29.8]} 25. Ne4 {[%clk 0:01:31.4]} 25... Bxe4 {[%clk 0:02:28.7]} 26.
Bxe4 {[%clk 0:01:32.3]} 26... Rad8 {[%clk 0:02:29.6]} 27. Bc6 {[%clk 0:01:31.1]}
27... Nxf6 {[%clk 0:02:29.5]} 28. Bxe8 {[%clk 0:01:17.7]} 28... Rd1+ {[%clk
0:02:28]} 29. Ne1 {[%clk 0:01:16.2]} 29... Nxe8 {[%clk 0:02:21]} 30. Kf1 {[%clk
0:01:16.4]} 30... Rd8 {[%clk 0:02:11.2]} 31. f4 {[%clk 0:01:11.1]} 31... Nc7
{[%clk 0:02:10.4]} 32. g4 {[%clk 0:00:55]} 32... Rd4 {[%clk 0:02:06.9]} 33. Ng2
{[%clk 0:00:36.3]} 33... Nd5 {[%clk 0:02:02.6]} 34. Rf3 {[%clk 0:00:36.6]} 34...
c3 {[%clk 0:02:03]} 35. Ne1 {[%clk 0:00:27.1]} 35... Rxf4 {[%clk 0:01:59.7]} 36.
Ke2 {[%clk 0:00:26]} 36... Re4+ {[%clk 0:01:58.9]} 37. Kd1 {[%clk 0:00:23.1]}
37... Rxe5 {[%clk 0:01:55.8]} 38. Rd3 {[%clk 0:00:20.2]} 38... Ne3+ {[%clk
0:01:53.4]} 39. Kc1 {[%clk 0:00:20.2]} 39... Nxg4 {[%clk 0:01:53.9]} 40. Nf3
{[%clk 0:00:20.6]} 40... Re3 {[%clk 0:01:50.8]} 41. Rd8+ {[%clk 0:00:20.1]}
41... Kg7 {[%clk 0:01:50.7]} 42. Nd4 {[%clk 0:00:20.8]} 42... Rh3 {[%clk
0:01:47.1]} 43. Rd7 {[%clk 0:00:16.7]} 43... Rxh2 {[%clk 0:01:43.1]} 44. Nc6
{[%clk 0:00:15.6]} 44... Ne3 {[%clk 0:01:41.5]} 0-1

[Event "*** SCC Grand Prix: Titled Tuesday Blitz"]
[Site "Chess.com"]
[Date "2020.10.13"]
[Round "1"]
[White "Jumbo"]
[Black "diamonds13"]
[Result "1-0"]
[WhiteElo "2802"]
[BlackElo "2410"]
[TimeControl "180+1"]
[EndTime "10:06:09 PDT"]
[Termination "Jumbo won by resignation"]

1. d4 {[%clk 0:02:58.6]} 1... Nf6 {[%clk 0:02:55.3]} 2. Bf4 {[%clk 0:02:57.5]}
2... d5 {[%clk 0:02:54.6]} 3. e3 {[%clk 0:02:56.1]} 3... c5 {[%clk 0:02:54.5]}
4. Nd2 {[%clk 0:02:52.5]} 4... Nc6 {[%clk 0:02:54.6]} 5. c3 {[%clk 0:02:52.3]}
5... cxd4 {[%clk 0:02:54]} 6. exd4 {[%clk 0:02:51.9]} 6... e6 {[%clk 0:02:54.7]}
7. Bd3 {[%clk 0:02:51.7]} 7... Bd6 {[%clk 0:02:54.8]} 8. Bxd6 {[%clk 0:02:50.6]}
8... Qxd6 {[%clk 0:02:54.6]} 9. Ngf3 {[%clk 0:02:51]} 9... a6 {[%clk 0:02:51.6]}
10. O-O {[%clk 0:02:51.2]} 10... b5 {[%clk 0:02:51.6]} 11. Re1 {[%clk
0:02:48.7]} 11... Bb7 {[%clk 0:02:50.6]} 12. a4 {[%clk 0:02:46.4]} 12... b4
{[%clk 0:02:49.2]} 13. c4 {[%clk 0:02:46.3]} 13... dxc4 {[%clk 0:02:36.6]} 14.
Nxc4 {[%clk 0:02:45.8]} 14... Qd8 {[%clk 0:02:36.9]} 15. a5 {[%clk 0:02:28.3]}
15... O-O {[%clk 0:02:36]} 16. Bf1 {[%clk 0:02:16.8]} 16... Rc8 {[%clk
0:02:31.6]} 17. Qd2 {[%clk 0:02:12.6]} 17... h6 {[%clk 0:02:31]} 18. Red1 {[%clk
0:02:02.5]} 18... Ne4 {[%clk 0:02:25.5]} 19. Qf4 {[%clk 0:01:58.4]} 19... Ne7
{[%clk 0:02:21.6]} 20. Nfe5 {[%clk 0:01:53.5]} 20... f5 {[%clk 0:02:11.9]} 21.
h4 {[%clk 0:01:44.3]} 21... g5 {[%clk 0:02:08.3]} 22. hxg5 {[%clk 0:01:41]}
22... hxg5 {[%clk 0:02:08.4]} 23. Qe3 {[%clk 0:01:36.9]} 23... f4 {[%clk
0:02:06.4]} 24. Qh3 {[%clk 0:01:36.3]} 24... Nf5 {[%clk 0:02:03.7]} 25. Ng6
{[%clk 0:01:26.3]} 25... Kg7 {[%clk 0:01:57.5]} 26. Nxf8 {[%clk 0:01:24.7]}
26... Qxf8 {[%clk 0:01:57.6]} 27. Nb6 {[%clk 0:01:16.5]} 27... Rd8 {[%clk
0:01:55.2]} 28. Rac1 {[%clk 0:01:16.6]} 28... Qf7 {[%clk 0:01:52.5]} 29. d5
{[%clk 0:01:08.6]} 29... Rh8 {[%clk 0:01:49.7]} 30. dxe6 {[%clk 0:01:07.5]}
30... Qxe6 {[%clk 0:01:32]} 31. Rc7+ {[%clk 0:01:02.2]} 31... Kg6 {[%clk
0:00:36.6]} 32. Qxh8 {[%clk 0:00:58.5]} 32... Nfg3 {[%clk 0:00:32.7]} 33. Qh7+
{[%clk 0:00:52.1]} 33... Kf6 {[%clk 0:00:32]} 1-0